fUSD/lending_fUSD_20260416
["ID","MTS","AMOUNT","RATE_DAILY","PERIOD"]
[420611069,1776333041831,-6187.95255676,8.762e-05,2]
[420611070,1776333041843,-436.75223375,8.762e-05,2]
[420611071,1776333041854,-3312.24780515,8.762e-05,2]
[420611072,1776333041890,-372668.92291579,8.762e-05,2]
[420611073,1776333041901,-993.71667762,8.762e-05,2]
[420611074,1776333041913,-1337.35,8.762e-05,2]
[420611075,1776333041925,-1033.56296967,8.762e-05,2]
[420611076,1776333041937,-1738.835448,8.762e-05,2]
[420611077,1776333041948,-431.69598331,8.762e-05,2]
[420611078,1776333042053,-999.8506,8.762e-05,2]
[420611079,1776333042065,-1021.88178341,8.762e-05,2]
[420611080,1776333042081,-1164.20361154,8.762e-05,2]
[420611081,1776333042162,-257158.69510677,8.762e-05,2]
[420611082,1776333042175,-1039.99271658,8.762e-05,2]
[420611083,1776333042188,-265.1286,8.762e-05,2]
[420611084,1776333042210,-265.96,8.762e-05,2]
[420611085,1776333042246,-800.99562564,8.762e-05,2]
[420611086,1776333042257,-49628.40544222,8.762e-05,2]
[420611087,1776333042321,-624.78967385,8.762e-05,2]
[420611088,1776333042339,-1084.35956832,8.762e-05,2]
[420611089,1776333042369,-333.26194966,8.762e-05,2]
[420611110,1776333043225,-23577.07143561,8.762e-05,2]
[420611111,1776333043440,-92876.0,8.762e-05,2]
[420611112,1776333043494,-1625.27450502,8.762e-05,2]
[420611122,1776333046646,-1823.86937586,8.762e-05,2]
[420611123,1776333046671,-27389.25085867,8.762e-05,2]
[420611125,1776333179296,156.01,8.219e-05,2]
[420611126,1776333250295,157.0,8.219e-05,3]
[420611127,1776333265278,500.0,8.2e-05,2]
[420611129,1776333672252,300.0,7.914e-05,2]
[420611133,1776333762660,500.0,7.935e-05,2]
[420611134,1776333920709,153.8774472,7.693e-05,2]
[420611135,1776333920738,152.97726268,7.693e-05,2]
[420611136,1776333930383,150.0,7.693e-05,2]
[420611137,1776333930451,150.0,8.121e-05,2]
[420611138,1776333933099,183.56823947,7.693e-05,2]
[420611139,1776333949283,200.0,7.782e-05,2]
[420611140,1776333956227,178.00987905,7e-05,2]
[420611149,1776334232385,-300.0,8.389e-05,2]
[420611150,1776334232407,-900.0,8.389e-05,2]
[420611151,1776334232418,-250.0,8.39e-05,2]
[420611152,1776334232428,-4154.693,8.39e-05,2]
[420611153,1776334232438,-298.473,8.39e-05,2]
[420611154,1776334232448,-3949.2409,8.461e-05,2]
[420611155,1776334232458,-10592.5285,8.461e-05,2]
[420611156,1776334232469,-166.66,8.526e-05,2]
[420611157,1776334232479,-150.0,8.548e-05,2]
[420611158,1776334232489,-150.0,8.55e-05,2]
[420611159,1776334232499,-10073.94096378,8.551e-05,2]
[420611160,1776334232510,-500.0,8.56e-05,2]
[420611161,1776334232524,-500.0,8.56e-05,2]
[420611162,1776334232534,-500.0,8.56e-05,2]
[420611163,1776334232545,-500.0,8.56e-05,2]
[420611164,1776334232555,-500.0,8.56e-05,2]
[420611165,1776334232565,-329.03811583,8.56e-05,2]
[420611166,1776334232575,-397.78109793,8.56e-05,2]
[420611167,1776334232585,-500.0,8.56e-05,2]
[420611168,1776334232595,-500.0,8.56e-05,2]
[420611169,1776334232606,-500.0,8.56e-05,2]
[420611170,1776334232616,-173.53576883,8.56e-05,2]
[420611171,1776334232626,-500.0,8.56e-05,2]
[420611172,1776334232637,-389.20002096,8.56e-05,2]
[420611173,1776334232647,-287.32284052,8.56e-05,2]
[420611174,1776334232657,-89176.62083463,8.561e-05,2]
[420611175,1776334232684,-6475.4763372,8.561e-05,2]
[420611176,1776334232696,-31130.93960104,8.561e-05,2]
[420611177,1776334232823,-5957.44,8.561e-05,2]
[420611206,1776334241462,-500.0,8.561e-05,2]
[420611207,1776334241507,-677.70957071,8.561e-05,2]
[420611208,1776334241597,-4537.55298167,8.561e-05,2]
[420611209,1776334241608,-13084.05940635,8.561e-05,2]
[420611210,1776334241658,-438.0000005,8.561e-05,2]
[420611211,1776334241731,-2542.91899349,8.561e-05,2]
[420611212,1776334241743,-1187.75083997,8.561e-05,2]
[420611213,1776334241754,-331.39424204,8.561e-05,2]
[420611214,1776334241765,-299.69382268,8.561e-05,2]
[420611215,1776334241777,-1799.75290684,8.561e-05,2]
[420611216,1776334241802,-901.16,8.561e-05,2]
[420611217,1776334241814,-7483.80136411,8.561e-05,2]
[420611218,1776334241879,-185393.27617754,8.561e-05,2]
[420611251,1776334243337,-925.03709536,8.561e-05,2]
[420611252,1776334243348,-1911.16944807,8.561e-05,2]
[420611253,1776334243388,-37748.0000015,8.561e-05,2]
[420611254,1776334243400,-4541.51549796,8.561e-05,2]
[420611255,1776334243423,-3379.69708696,8.561e-05,2]
[420611256,1776334243483,-5908.47406092,8.561e-05,2]
[420611257,1776334244610,-1000.58112,8.561e-05,2]
[420611258,1776334244622,-610.45389952,8.561e-05,2]
[420611282,1776334245682,-2103.45,8.561e-05,2]
[420611284,1776334245711,-3694.21045042,8.561e-05,2]
[420611285,1776334245722,-41222.20856174,8.561e-05,2]
[420611286,1776334245757,-219021.9587535,8.561e-05,2]
[420611287,1776334245769,-1068.14420931,8.561e-05,2]
[420611290,1776334421813,3372.83,8.219e-05,2]
[420611291,1776334445495,150.0,8.219e-05,3]
[420611292,1776334573638,160.0,8.219e-05,3]
[420611293,1776334633756,173.0,8.219e-05,3]
[420611294,1776334688831,173.0,8.219e-05,3]
[420611295,1776334697308,168.03,6.53e-05,2]
[420611296,1776334727848,3221.83,8.179e-05,2]
[420611298,1776334743782,2203.31012095,8.308e-05,2]
[420611299,1776334743805,7796.68987905,8.308e-05,2]
[420611300,1776334749631,174.0,8.219e-05,3]
[420611301,1776334770052,2000.0,8.219e-05,2]
[420611302,1776334866897,29.32012095,8.219e-05,3]
[420611303,1776334866923,144.67987905,8.219e-05,3]
[420611304,1776334925603,174.0,8.219e-05,3]
[420611305,1776335003848,1600.0,8.097e-05,2]
[420611306,1776335112388,159.0,8.219e-05,3]
[420611307,1776335139339,9841.01,7.764e-05,2]
[420611308,1776335139362,10000.01,7.764e-05,2]
[420611309,1776335139387,10000.01,7.764e-05,2]
[420611310,1776335139410,10000.01,7.764e-05,2]
[420611311,1776335139432,10000.01,7.764e-05,2]
[420611312,1776335139455,10000.01,7.764e-05,2]
[420611313,1776335139479,10000.01,7.764e-05,2]
[420611314,1776335139501,21.79,7.764e-05,2]
[420611315,1776335148090,249.17,7.764e-05,2]
[420611316,1776335261632,9750.84,7.75e-05,2]
[420611317,1776335261655,1662.37,7.75e-05,2]
[420611327,1776335432475,-1200.0,8.36e-05,2]
[420611328,1776335432485,-150.0,8.36e-05,2]
[420611329,1776335432495,-300.0,8.36e-05,2]
[420611330,1776335432504,-259.0,8.361e-05,2]
[420611331,1776335432514,-9118.23253767,8.361e-05,2]
[420611332,1776335432528,-3229.88370083,8.361e-05,2]
[420611333,1776335432615,-76226.3130615,8.361e-05,2]
[420611334,1776335432624,-213.57267586,8.387e-05,2]
[420611335,1776335432634,-2155.51993381,8.388e-05,2]
[420611336,1776335432643,-500.0,8.5e-05,2]
[420611337,1776335432652,-196.65153049,8.531e-05,2]
[420611338,1776335432661,-201.12598837,8.558e-05,2]
[420611339,1776335432671,-500.0,8.558e-05,2]
[420611340,1776335432680,-328.44676855,8.558e-05,2]
[420611341,1776335432690,-500.0,8.558e-05,2]
[420611342,1776335432699,-154.35555789,8.558e-05,2]
[420611343,1776335432708,-500.0,8.558e-05,2]
[420611344,1776335432718,-280.32668108,8.558e-05,2]
[420611345,1776335432727,-500.0,8.558e-05,2]
[420611346,1776335432736,-646.51442559,8.558e-05,2]
[420611347,1776335432746,-500.0,8.558e-05,2]
[420611348,1776335432756,-292.37216748,8.558e-05,2]
[420611349,1776335432765,-500.0,8.558e-05,2]
[420611350,1776335432775,-500.0,8.558e-05,2]
[420611351,1776335432784,-500.0,8.558e-05,2]
[420611352,1776335432794,-500.0,8.558e-05,2]
[420611353,1776335432803,-500.0,8.558e-05,2]
[420611354,1776335432813,-500.0,8.558e-05,2]
[420611355,1776335432822,-500.0,8.558e-05,2]
[420611356,1776335432831,-500.0,8.558e-05,2]
[420611357,1776335432840,-500.0,8.558e-05,2]
[420611358,1776335432850,-500.0,8.558e-05,2]
[420611359,1776335432859,-536.4400317,8.558e-05,2]
[420611360,1776335432869,-500.0,8.558e-05,2]
[420611361,1776335432878,-500.0,8.558e-05,2]
[420611362,1776335432887,-500.0,8.558e-05,2]
[420611363,1776335432897,-500.0,8.558e-05,2]
[420611364,1776335432906,-500.0,8.558e-05,2]
[420611365,1776335432915,-500.0,8.558e-05,2]
[420611366,1776335432924,-500.0,8.558e-05,2]
[420611367,1776335432934,-500.0,8.558e-05,2]
[420611368,1776335432943,-500.0,8.558e-05,2]
[420611369,1776335432952,-151.0,8.558e-05,2]
[420611370,1776335432961,-420.7559301,8.559e-05,2]
[420611371,1776335432971,-7804.8625863,8.559e-05,2]
[420611372,1776335432980,-164079.8194083,8.559e-05,2]
[420611373,1776335432990,-51472.901415,8.559e-05,2]
[420611374,1776335433002,-61240.18424961,8.559e-05,2]
[420611375,1776335433013,-8872.47113434,8.559e-05,2]
[420611376,1776335434718,152.0,8.209e-05,7]
[420611385,1776335439315,-287.68959405,8.559e-05,2]
[420611386,1776335439424,-284.37830321,8.559e-05,2]
[420611387,1776335439443,-629.20404,8.559e-05,2]
[420611388,1776335439455,-524.0,8.559e-05,2]
[420611389,1776335439469,-669.57770617,8.559e-05,2]
[420611394,1776335441592,-7715.02992362,8.559e-05,2]
[420611395,1776335441794,-173096.4603222,8.559e-05,2]
[420611396,1776335441804,-151.0,8.559e-05,2]
[420611397,1776335441813,-151.0,8.559e-05,2]
[420611398,1776335441823,-262.070645,8.559e-05,2]
[420611399,1776335441832,-616.199982,8.559e-05,2]
[420611400,1776335441842,-616.199982,8.559e-05,2]
[420611401,1776335441852,-616.199982,8.559e-05,2]
[420611402,1776335441861,-616.199982,8.559e-05,2]
[420611403,1776335441871,-151.0,8.559e-05,2]
[420611404,1776335441881,-423.482786,8.559e-05,2]
[420611405,1776335441890,-423.482786,8.559e-05,2]
[420611406,1776335441900,-423.482786,8.559e-05,2]
[420611407,1776335441910,-423.482786,8.559e-05,2]
[420611408,1776335441919,-500.0,8.561e-05,2]
[420611409,1776335441929,-152.0,8.561e-05,7]
[420611410,1776335441938,-180.0,8.594e-05,3]
[420611411,1776335441948,-151.0,8.659e-05,2]
[420611412,1776335441958,-250.0,8.665e-05,2]
[420611413,1776335441967,-474.0,8.669e-05,2]
[420611414,1776335441977,-500.0,8.685e-05,2]
[420611415,1776335441986,-351.0,8.686e-05,2]
[420611416,1776335441996,-1428.0,8.709e-05,2]
[420611417,1776335442005,-211.0,8.709e-05,2]
[420611418,1776335442015,-1299.0,8.727e-05,2]
[420611419,1776335442024,-283.0,8.727e-05,2]
[420611420,1776335442034,-150.0,8.783e-05,2]
[420611421,1776335442043,-166.66,8.808e-05,2]
[420611422,1776335442053,-1482.74,8.864e-05,2]
[420611423,1776335442063,-999.99,8.864e-05,2]
[420611424,1776335442072,-17908.93,8.864e-05,2]
[420611425,1776335442081,-3244.24,8.864e-05,2]
[420611426,1776335442091,-299.99,8.864e-05,2]
[420611427,1776335442100,-150.99,8.864e-05,2]
[420611428,1776335442109,-9999.99,8.864e-05,2]
[420611429,1776335442119,-9552.16786547,8.953e-05,2]
[420611430,1776335442128,-721.12765535,8.953e-05,2]
[420611431,1776335442139,-151.0,8.953e-05,2]
[420611432,1776335442149,-151.0,8.953e-05,2]
[420611433,1776335442160,-200.0,8.953e-05,2]
[420611434,1776335442170,-279.9045709,8.953e-05,2]
[420611435,1776335442180,-500.0,8.953e-05,2]
[420611436,1776335442191,-174.61919141,8.953e-05,2]
[420611437,1776335442200,-500.0,8.953e-05,2]
[420611438,1776335442211,-151.0,8.953e-05,2]
[420611439,1776335442221,-500.0,8.953e-05,2]
[420611440,1776335442231,-500.0,8.953e-05,2]
[420611441,1776335442240,-500.0,8.953e-05,2]
[420611442,1776335442250,-500.0,8.953e-05,2]
[420611443,1776335442260,-235.75327194,8.953e-05,2]
[420611444,1776335442269,-500.0,8.953e-05,2]
[420611445,1776335442279,-244.476143,8.953e-05,2]
[420611446,1776335442289,-500.0,8.953e-05,2]
[420611447,1776335442299,-253.52176029,8.953e-05,2]
[420611448,1776335442309,-618.20119968,8.953e-05,2]
[420611449,1776335442318,-262.90206542,8.953e-05,2]
[420611450,1776335442328,-272.62944185,8.953e-05,2]
[420611451,1776335442337,-282.71673119,8.953e-05,2]
[420611452,1776335442347,-293.17725025,8.953e-05,2]
[420611453,1776335442356,-152.0,8.953e-05,2]
[420611454,1776335442365,-225.60716926,8.953e-05,2]
[420611455,1776335442374,-564.01,8.953e-05,2]
[420611456,1776335442384,-500.0,8.959e-05,2]
[420611457,1776335442394,-1000.0,9e-05,2]
[420611458,1776335442403,-600.0,9e-05,3]
[420611459,1776335442413,-151.0,9.008e-05,2]
[420611460,1776335442423,-156.01,9.041e-05,2]
[420611461,1776335442432,-151.0,9.063e-05,2]
[420611462,1776335442441,-166.66,9.089e-05,2]
[420611463,1776335442451,-150.0,9.1e-05,2]
[420611464,1776335442461,-1600.0,9.109e-05,2]
[420611465,1776335442470,-151.0,9.118e-05,2]
[420611466,1776335442479,-68008.2647199,9.17e-05,2]
[420611468,1776335442488,-616.199982,9.17e-05,2]
[420611470,1776335442498,-616.199982,9.17e-05,2]
[420611472,1776335442507,-616.199982,9.17e-05,2]
[420611473,1776335442517,-616.199982,9.17e-05,2]
[420611474,1776335442526,-151.0,9.17e-05,2]
[420611475,1776335442535,-423.482786,9.17e-05,2]
[420611476,1776335442545,-423.482786,9.17e-05,2]
[420611477,1776335442554,-423.482786,9.17e-05,2]
[420611478,1776335442564,-423.482786,9.17e-05,2]
[420611479,1776335442573,-151.0,9.173e-05,2]
[420611480,1776335442582,-1680.0,9.196e-05,2]
[420611481,1776335442592,-255.0,9.196e-05,2]
[420611482,1776335442601,-420.0,9.196e-05,2]
[420611483,1776335442611,-250.0,9.196e-05,2]
[420611484,1776335442621,-500.0,9.22e-05,2]
[420611485,1776335442631,-551.55709867,9.22e-05,2]
[420611486,1776335442640,-500.0,9.22e-05,2]
[420611487,1776335442650,-160.04311138,9.22e-05,2]
[420611488,1776335442659,-582.48941189,9.22e-05,2]
[420611489,1776335442668,-167.81189563,9.22e-05,2]
[420611490,1776335442678,-501.2455248,9.22e-05,2]
[420611492,1776335442688,-500.42337708,9.22e-05,2]
[420611494,1776335442697,-501.08118823,9.22e-05,2]
[420611496,1776335442707,-500.0,9.22e-05,2]
[420611498,1776335442716,-500.0,9.22e-05,2]
[420611500,1776335442725,-500.0,9.22e-05,2]
[420611501,1776335442734,-500.0,9.22e-05,2]
[420611502,1776335442744,-5000.70945023,9.226e-05,2]
[420611503,1776335442754,-381.34221114,9.226e-05,2]
[420611504,1776335442765,-564.01,9.227e-05,2]
[420611505,1776335442774,-151.0,9.228e-05,2]
[420611506,1776335442783,-151.0,9.228e-05,2]
[420611507,1776335442793,-151.0,9.228e-05,2]
[420611509,1776335442803,-2000.0,9.247e-05,2]
[420611511,1776335442812,-305.0,9.261e-05,5]
[420611514,1776335442823,-500.0,9.288e-05,2]
[420611515,1776335442833,-15174.6949983,9.306e-05,2]
[420611517,1776335442842,-500.0,9.322e-05,2]
[420611518,1776335442852,-250.0,9.332e-05,3]
[420611519,1776335442862,-250.0,9.332e-05,3]
[420611520,1776335442871,-250.0,9.332e-05,3]
[420611521,1776335442881,-250.0,9.332e-05,3]
[420611522,1776335442891,-166.66,9.371e-05,2]
[420611523,1776335442900,-222.84,9.481e-05,2]
[420611524,1776335442910,-156.587,9.501e-05,2]
[420611525,1776335442920,-200.0,9.501e-05,2]
[420611526,1776335442929,-181.08010149,9.501e-05,2]
[420611527,1776335442939,-564.01,9.501e-05,2]
[420611528,1776335442948,-7804.8625863,9.551e-05,2]
[420611529,1776335442958,-166.66,9.652e-05,2]
[420611530,1776335442968,-151.0,9.67e-05,2]
[420611531,1776335442978,-151.0,9.67e-05,2]
[420611532,1776335442988,-151.0,9.67e-05,2]
[420611533,1776335442997,-151.0,9.67e-05,2]
[420611534,1776335443007,-350.0,9.69e-05,2]
[420611535,1776335443016,-350.0,9.758e-05,2]
[420611536,1776335443026,-1093.03267219,9.768e-05,2]
[420611537,1776335443035,-1000.0,9.768e-05,2]
[420611538,1776335443045,-564.01,9.775e-05,2]
[420611539,1776335443055,-350.0,9.847e-05,2]
[420611540,1776335443065,-156.01,9.863e-05,2]
[420611541,1776335443074,-1000.0,9.87e-05,2]
[420611542,1776335443084,-166.66,9.934e-05,2]
[420611543,1776335443093,-300.18,9.962e-05,2]
[420611544,1776335443102,-160.04003381,9.973e-05,2]
[420611545,1776335443112,-150.0,9.986e-05,2]
[420611546,1776335443123,-150.0,9.986e-05,2]
[420611547,1776335443134,-150.0,9.986e-05,2]
[420611548,1776335443143,-150.0,9.986e-05,2]
[420611549,1776335443152,-150.0,9.986e-05,2]
[420611550,1776335443162,-153.46564694,9.986e-05,2]
[420611552,1776335443172,-150.0,9.986e-05,2]
[420611554,1776335443181,-150.0,9.986e-05,2]
[420611556,1776335443190,-150.0,9.986e-05,2]
[420611557,1776335443200,-151.0,0.0001,2]
[420611558,1776335443209,-165.8214,0.0001,2]
[420611559,1776335443218,-251.66666667,0.0001,2]
[420611560,1776335443227,-151.0,0.0001,2]
[420611561,1776335443237,-151.0,0.0001,2]
[420611562,1776335443246,-4186.578,0.0001,2]
[420611563,1776335443255,-151.0,0.0001,2]
[420611564,1776335443265,-73360.77909085,0.0001,2]
[420611565,1776335443308,-635.19657638,0.0001,2]
[420611566,1776335443348,-3549.4941997,0.0001,2]
[420611567,1776335443434,-8119.30720015,0.0001,2]
[420611568,1776335443514,-3319.34564539,0.0001,2]
[420611570,1776335445755,-255.9990625,8.514e-05,2]
[420611571,1776335445764,-606.63076068,0.0001,2]
[420611572,1776335445807,-312.25796975,0.0001,2]
[420611573,1776335445888,-528.64199817,0.0001,2]
[420611574,1776335445910,-3939.183122,0.0001,2]
[420611575,1776335445941,-3302.55053612,0.0001,2]
[420611578,1776335451131,-439.13846193,0.0001,2]
[420611579,1776335451267,-3406.6904,0.0001,2]
[420611580,1776335451317,-3724.95,0.0001,2]
[420611581,1776335451329,-1749.83403888,0.0001,2]
[420611582,1776335451339,-151.0,0.0001,2]
[420611583,1776335451349,-200.0,0.0001,2]
[420611584,1776335451359,-192.67124244,0.0001,2]
[420611585,1776335451369,-500.0,0.0001,2]
[420611586,1776335451378,-500.0,0.0001,2]
[420611587,1776335451388,-500.0,0.0001,2]
[420611588,1776335451397,-500.0,0.0001,2]
[420611589,1776335451407,-500.0,0.0001,2]
[420611590,1776335451417,-500.0,0.0001,2]
[420611591,1776335451426,-500.0,0.0001,2]
[420611592,1776335451436,-500.0,0.0001,2]
[420611593,1776335451447,-500.0,0.0001,2]
[420611594,1776335451457,-500.0,0.0001,2]
[420611595,1776335451467,-436.47467264,0.0001,2]
[420611596,1776335451477,-616.199982,0.0001,2]
[420611597,1776335451486,-616.199982,0.0001,2]
[420611598,1776335451495,-616.199982,0.0001,2]
[420611599,1776335451505,-616.199982,0.0001,2]
[420611600,1776335451514,-2592.18458359,0.0001,2]
[420611601,1776335451524,-151.754511,0.0001,2]
[420611602,1776335451533,-1807.41883,0.0001,2]
[420611603,1776335451542,-1807.41884,0.0001,2]
[420611604,1776335451552,-1807.41884,0.0001,2]
[420611605,1776335451561,-1807.41884,0.0001,2]
[420611606,1776335451571,-1807.41884,0.0001,2]
[420611607,1776335451581,-1807.41883,0.0001,2]
[420611608,1776335451591,-423.482786,0.0001,2]
[420611609,1776335451601,-423.482786,0.0001,2]
[420611610,1776335451612,-423.482786,0.0001,2]
[420611611,1776335451621,-423.482786,0.0001,2]
[420611612,1776335451631,-162.380719,0.00010049,2]
[420611613,1776335451640,-200.0,0.00010049,2]
[420611614,1776335451652,-187.78006525,0.00010049,2]
[420611615,1776335451661,-564.01505446,0.00010049,2]
[420611616,1776335451671,-150.164,0.00010066,2]
[420611617,1776335451681,-1265.0,0.00010066,2]
[420611618,1776335451690,-1234.438,0.00010066,2]
[420611619,1776335451699,-939.724,0.00010066,2]
[420611620,1776335451708,-2473.0,0.00010066,2]
[420611621,1776335451718,-622.0,0.00010066,2]
[420611622,1776335451727,-1348.0,0.00010066,2]
[420611623,1776335451736,-5532.0,0.000101,3]
[420611624,1776335451746,-5532.0,0.000101,5]
[420611625,1776335451755,-151.0,0.00010106,2]
[420611626,1776335451765,-2351.0,0.00010116,2]
[420611627,1776335451775,-222.85272821,0.00010116,2]
[420611628,1776335451819,-210.14727179,0.00010116,2]
[420611629,1776335451830,-148.32095846,0.00010116,2]
[420611630,1776335451842,-438.67904154,0.00010116,2]
[420611631,1776335451851,-1484.23914211,0.00010121,2]
[420611632,1776335451874,-115.76085789,0.00010121,2]
[420611633,1776335451883,-150.112,0.0001023,2]
[420611634,1776335451893,-2000.0,0.00010274,2]
[420611635,1776335451902,-1284.419038,0.0001031,2]
[420611636,1776335451911,-3890.199671,0.00010331,2]
[420611637,1776335451920,-11314.05256505,0.00010399,2]
[420611638,1776335535239,9848.01,8.261e-05,2]
[420611639,1776335535265,10000.01,8.261e-05,2]
[420611640,1776335535291,10000.01,8.261e-05,2]
[420611641,1776335535319,10000.01,8.261e-05,2]
[420611642,1776335535348,10000.01,8.261e-05,2]
[420611643,1776335535372,10000.01,8.261e-05,2]
[420611644,1776335535398,10000.01,8.261e-05,2]
[420611645,1776335535424,10000.01,8.261e-05,2]
[420611646,1776335535449,10000.01,8.261e-05,2]
[420611647,1776335535473,10000.01,8.261e-05,2]
[420611648,1776335535506,17007.211,8.261e-05,2]
[420611650,1776335592358,222.0,8.261e-05,3]
[420611651,1776335696357,10000.01,8.261e-05,2]
[420611652,1776335696383,10000.01,8.261e-05,2]
[420611653,1776335696408,10000.01,8.261e-05,2]
[420611654,1776335696434,10000.01,8.261e-05,2]
[420611655,1776335696459,10000.01,8.261e-05,2]
[420611656,1776335696484,10000.01,8.261e-05,2]
[420611657,1776335696511,10000.01,8.261e-05,2]
[420611658,1776335696539,10000.01,8.261e-05,2]
[420611659,1776335696566,10000.01,8.261e-05,2]
[420611660,1776335696590,10000.01,8.261e-05,2]
[420611661,1776335696615,4778.01,8.261e-05,2]
[420611662,1776335696639,5000.01,8.261e-05,2]
[420611663,1776335696663,5000.01,8.261e-05,2]
[420611664,1776335696688,5000.01,8.261e-05,2]
[420611665,1776335696711,5000.01,8.261e-05,2]
[420611666,1776335696735,5000.01,8.261e-05,2]
[420611667,1776335696759,5000.01,8.261e-05,2]
[420611668,1776335696783,5000.01,8.261e-05,2]
[420611669,1776335696807,5000.01,8.261e-05,2]
[420611670,1776335696831,5000.01,8.261e-05,2]
[420611671,1776335696856,39921.99,8.261e-05,2]
[420611672,1776335708076,160.0,8.261e-05,3]
[420611673,1776335711091,159.0,8.261e-05,3]
[420611674,1776335719184,1456.4032,8.287e-05,2]
[420611675,1776335770104,161.0,8.261e-05,3]
[420611676,1776335887216,161.0,8.261e-05,3]
[420611677,1776335947810,161.0,8.261e-05,3]
[420611678,1776336013794,158.0,8.261e-05,3]
[420611679,1776336072047,161.0,8.261e-05,3]
[420611680,1776336127626,161.0,8.261e-05,3]
[420611682,1776336244886,161.0,8.261e-05,3]
[420611683,1776336306725,159.0,8.261e-05,3]
[420611684,1776336307949,173.0,8.261e-05,3]
[420611685,1776336372798,159.0,8.261e-05,3]
[420611686,1776336489706,159.0,8.261e-05,3]
[420611687,1776336573065,159.0,8.261e-05,3]
[420611727,1776336611747,159.0,8.261e-05,3]
[420611728,1776336614454,159.0,8.261e-05,3]
[420611735,1776336632160,-152.0,8.374e-05,7]
[420611736,1776336632171,-259.0,8.386e-05,2]
[420611737,1776336632180,-166.81,8.406e-05,2]
[420611738,1776336632190,-500.0,8.559e-05,2]
[420611739,1776336632200,-330.0,8.594e-05,3]
[420611740,1776336632209,-596.78913914,8.624e-05,2]
[420611741,1776336632221,-1241.67308686,8.624e-05,2]
[420611742,1776336632230,-163.28,8.658e-05,2]
[420611743,1776336632240,-150.0,8.7e-05,2]
[420611744,1776336632249,-578.20924308,8.705e-05,2]
[420611745,1776336632259,-500.0,8.705e-05,2]
[420611746,1776336632268,-1200.0,8.718e-05,2]
[420611747,1776336632277,-1852.42,8.719e-05,2]
[420611748,1776336632287,-500.0,8.76e-05,2]
[420611749,1776336632296,-500.0,8.815e-05,2]
[420611750,1776336632305,-300.0,8.826e-05,2]
[420611751,1776336632314,-300.0,8.826e-05,2]
[420611752,1776336632324,-300.0,8.827e-05,2]
[420611753,1776336632333,-174.61919141,8.828e-05,2]
[420611754,1776336632342,-151.0,8.828e-05,2]
[420611755,1776336632351,-235.75327194,8.828e-05,2]
[420611756,1776336632360,-244.476143,8.828e-05,2]
[420611757,1776336632370,-253.52176029,8.828e-05,2]
[420611758,1776336632379,-262.90206542,8.828e-05,2]
[420611759,1776336632388,-288.61974048,8.828e-05,2]
[420611760,1776336632398,-150.0,8.832e-05,2]
[420611761,1776336632407,-299.99,8.833e-05,2]
[420611762,1776336632416,-6474.58797459,8.833e-05,2]
[420611763,1776336632482,-1378.17418521,8.833e-05,2]
[420611766,1776336632565,-416.9194,8.833e-05,2]
[420611767,1776336632673,-30407.9484402,8.833e-05,2]
[420611768,1776336632683,-2246.1,8.833e-05,2]
[420611769,1776336632693,-9999.99,8.833e-05,2]
[420611770,1776336632703,-150.99,8.833e-05,2]
[420611771,1776336632713,-9999.99,8.833e-05,2]
[420611772,1776336632723,-152.0,8.835e-05,7]
[420611773,1776336632734,-500.0,8.87e-05,2]
[420611774,1776336632744,-500.0,8.925e-05,2]
[420611775,1776336632753,-500.0,8.98e-05,2]
[420611776,1776336632763,-163.28,9.016e-05,2]
[420611777,1776336632773,-500.0,9.026e-05,2]
[420611778,1776336632783,-500.0,9.035e-05,2]
[420611779,1776336632792,-675.4368,9.179e-05,2]
[420611780,1776336632802,-250.0,9.211e-05,2]
[420611781,1776336632812,-1500.0,9.235e-05,2]
[420611782,1776336632821,-743.50770149,9.268e-05,2]
[420611783,1776336632831,-500.0,9.273e-05,2]
[420611784,1776336632840,-500.0,9.273e-05,2]
[420611785,1776336632850,-500.0,9.273e-05,2]
[420611786,1776336632859,-500.0,9.273e-05,2]